[Event "NJSK 2026 Jeugd C"]
[Site "Helmond, Netherlands"]
[Date "2026.04.29"]
[Round "6.12"]
[White "Nguyen, Paul"]
[Black "Suthan, Aadvik"]
[Result "0-1"]
[TimeControl "90min/40moves + 30sec/move"]
[WhiteTitle "-"]
[BlackTitle "-"]
[WhiteFideId "1095072"]
[BlackFideId "1095765"]
[WhiteElo "1845"]
[BlackElo "1822"]

1. c4 {[%clk 01:30:56]} {[%emt 00:00:03]} c5 {[%clk 01:30:44]} {[%emt
00:00:17]} 2. g3 {[%clk 01:31:10]} {[%emt 00:00:15]} g6 {[%clk 01:31:03]}
{[%emt 00:00:11]} 3. Bg2 {[%clk 01:31:34]} {[%emt 00:00:06]} Bg7 {[%clk
01:31:23]} {[%emt 00:00:10]} 4. Nf3 {[%clk 01:32:00]} {[%emt 00:00:05]} Nc6
{[%clk 01:31:17]} {[%emt 00:00:35]} 5. Nc3 {[%clk 01:32:21]} {[%emt 00:00:09]}
Nf6 {[%clk 01:31:36]} {[%emt 00:00:10]} 6. d3 {[%clk 01:32:10]} {[%emt
00:00:42]} d6 {[%clk 01:31:40]} {[%emt 00:00:25]} 7. O-O {[%clk 01:32:13]}
{[%emt 00:00:28]} O-O {[%clk 01:32:02]} {[%emt 00:00:08]} 8. e4 {[%clk
01:32:26]} {[%emt 00:00:17]} Bg4 {[%clk 01:28:20]} {[%emt 00:04:12]} 9. h3
{[%clk 01:31:27]} {[%emt 00:01:29]} Be6 {[%clk 01:27:58]} {[%emt 00:00:52]} 10.
Ng5 {[%clk 01:29:32]} {[%emt 00:02:25]} Bd7 {[%clk 01:28:08]} {[%emt 00:00:20]}
11. f4 {[%clk 01:28:15]} {[%emt 00:01:48]} h6 {[%clk 01:27:26]} {[%emt
00:01:11]} 12. Nf3 {[%clk 01:27:54]} {[%emt 00:00:51]} e5 {[%clk 01:26:03]}
{[%emt 00:01:53]} 13. Be3 {[%clk 01:18:33]} {[%emt 00:09:52]} Nh5 {[%clk
01:24:24]} {[%emt 00:02:09]} 14. Kh2 {[%clk 01:00:17]} {[%emt 00:18:45]} exf4
{[%clk 01:18:04]} {[%emt 00:06:50]} 15. gxf4 {[%clk 00:59:57]} {[%emt
00:00:49]} f5 {[%clk 01:18:03]} {[%emt 00:00:31]} 16. e5 {[%clk 00:52:38]}
{[%emt 00:07:51]} dxe5 {[%clk 01:17:07]} {[%emt 00:01:25]} 17. Bxc5 {[%clk
00:49:05]} {[%emt 00:04:03]} Re8 {[%clk 01:16:43]} {[%emt 00:00:53]} 18. fxe5
{[%clk 00:43:05]} {[%emt 00:06:31]} Nxe5 {[%clk 01:11:35]} {[%emt 00:05:37]} 19.
Bd6 {[%clk 00:41:51]} {[%emt 00:01:46]} Nxf3+ {[%clk 01:09:18]} {[%emt
00:02:47]} 20. Bxf3 {[%clk 00:42:11]} {[%emt 00:00:09]} Bc6 {[%clk 01:09:29]}
{[%emt 00:00:20]} 21. c5 {[%clk 00:41:08]} {[%emt 00:01:33]} Bxf3 {[%clk
00:59:56]} {[%emt 00:10:02]} 22. Qxf3 {[%clk 00:41:19]} {[%emt 00:00:19]} Be5+
{[%clk 01:00:08]} {[%emt 00:00:18]} 23. Kg1 {[%clk 00:40:22]} {[%emt 00:01:26]}
Bxd6 {[%clk 00:57:01]} {[%emt 00:03:38]} 24. Qd5+ {[%clk 00:37:41]} {[%emt
00:03:11]} Kh7 {[%clk 00:57:23]} {[%emt 00:00:08]} 25. cxd6 {[%clk 00:37:27]}
{[%emt 00:00:44]} Qg5+ {[%clk 00:56:57]} {[%emt 00:00:57]} 26. Qg2 {[%clk
00:37:23]} {[%emt 00:00:32]} Qe3+ {[%clk 00:53:30]} {[%emt 00:03:59]} 27. Kh2
{[%clk 00:35:34]} {[%emt 00:02:17]} Qe5+ {[%clk 00:52:55]} {[%emt 00:01:06]} 28.
Kg1 {[%clk 00:35:57]} {[%emt 00:00:06]} Rab8 {[%clk 00:50:53]} {[%emt
00:02:33]} 29. Rfe1 {[%clk 00:33:34]} {[%emt 00:02:52]} Qd4+ {[%clk 00:49:58]}
{[%emt 00:01:26]} 30. Kh1 {[%clk 00:33:55]} {[%emt 00:00:09]} Qxd6 {[%clk
00:50:18]} {[%emt 00:00:10]} 31. Rxe8 {[%clk 00:34:03]} {[%emt 00:00:22]} Rxe8
{[%clk 00:50:31]} {[%emt 00:00:18]} 32. Qxb7+ {[%clk 00:34:28]} {[%emt
00:00:04]} Re7 {[%clk 00:50:50]} {[%emt 00:00:11]} 33. Qf3 {[%clk 00:34:44]}
{[%emt 00:00:14]} Nf4 {[%clk 00:48:25]} {[%emt 00:02:55]} 34. Rd1 {[%clk
00:33:42]} {[%emt 00:01:32]} g5 {[%clk 00:47:27]} {[%emt 00:01:28]} 35. d4
{[%clk 00:32:39]} {[%emt 00:01:33]} h5 {[%clk 00:47:22]} {[%emt 00:00:36]} 36.
d5 {[%clk 00:32:05]} {[%emt 00:01:03]} Qc5 {[%clk 00:46:59]} {[%emt 00:00:54]}
37. b4 {[%clk 00:28:03]} {[%emt 00:04:32]} Qb6 {[%clk 00:30:01]} {[%emt
00:17:29]} 38. a4 {[%clk 00:28:21]} {[%emt 00:00:11]} Re3 {[%clk 00:29:47]}
{[%emt 00:00:44]} 39. a5 {[%clk 00:28:41]} {[%emt 00:00:10]} Rxf3 {[%clk
00:29:59]} {[%emt 00:00:18]} 40. axb6 {[%clk 00:29:03]} {[%emt 00:00:08]} axb6
{[%clk 00:28:01]} {[%emt 00:02:28]} 41. Na4 {[%clk 00:27:38]} {[%emt 00:01:55]}
Rxh3+ {[%clk 00:28:16]} {[%emt 00:00:14]} 42. Kg1 {[%clk 00:28:00]} {[%emt
00:00:07]} Rb3 {[%clk 00:28:22]} {[%emt 00:00:25]} 43. Nxb6 {[%clk 00:27:44]}
{[%emt 00:00:46]} Rxb4 {[%clk 00:28:41]} {[%emt 00:00:11]} 44. Nd7 {[%clk
00:28:06]} {[%emt 00:00:08]} Ne2+ {[%clk 00:27:41]} {[%emt 00:01:30]} 45. Kf2
{[%clk 00:28:01]} {[%emt 00:00:35]} Nc3 {[%clk 00:28:05]} {[%emt 00:00:06]} 46.
Rd3 {[%clk 00:28:17]} {[%emt 00:00:14]} Ne4+ {[%clk 00:28:27]} {[%emt
00:00:09]} 47. Kf3 {[%clk 00:28:08]} {[%emt 00:00:28]} g4+ {[%clk 00:28:44]}
{[%emt 00:00:24]} 48. Ke3 {[%clk 00:28:12]} {[%emt 00:00:26]} f4+ {[%clk
00:28:08]} {[%emt 00:01:06]} 49. Ke2 {[%clk 00:28:30]} {[%emt 00:00:10]} Rb2+
{[%clk 00:28:21]} {[%emt 00:00:18]} 50. Ke1 {[%clk 00:28:30]} {[%emt 00:00:29]}
f3 {[%clk 00:28:42]} {[%emt 00:00:10]} 51. Ne5 {[%clk 00:28:51]} {[%emt
00:00:09]} Re2+ {[%clk 00:28:54]} {[%emt 00:00:18]} 52. Kf1 {[%clk 00:29:02]}
{[%emt 00:00:19]} Ng3+ {[%clk 00:29:18]} {[%emt 00:00:06]} 0-1

[Event "NJSK 2026 Jeugd C"]
[Site "Helmond, Netherlands"]
[Date "2026.04.29"]
[Round "6.13"]
[White "Fu, Ziqing"]
[Black "Shaikh, Rushaan"]
[Result "1-0"]
[TimeControl "90min/40moves + 30sec/move"]
[WhiteTitle "-"]
[BlackTitle "-"]
[WhiteFideId "40109623"]
[BlackFideId "40113604"]
[WhiteElo "1810"]
[BlackElo "1842"]

1. e4 {[%clk 01:30:30]} {[%emt 00:00:29]} g6 {[%clk 01:30:55]} {[%emt
00:00:06]} 2. d4 {[%clk 01:29:59]} {[%emt 00:01:00]} Bg7 {[%clk 01:31:18]}
{[%emt 00:00:08]} 3. Nf3 {[%clk 01:29:52]} {[%emt 00:00:36]} d6 {[%clk
01:31:39]} {[%emt 00:00:09]} 4. Nc3 {[%clk 01:28:57]} {[%emt 00:01:25]} a6
{[%clk 01:32:00]} {[%emt 00:00:09]} 5. a4 {[%clk 01:28:29]} {[%emt 00:00:57]}
b6 {[%clk 01:32:24]} {[%emt 00:00:07]} 6. Bc4 {[%clk 01:27:59]} {[%emt
00:00:58]} e6 {[%clk 01:32:47]} {[%emt 00:00:09]} 7. O-O {[%clk 01:27:54]}
{[%emt 00:00:33]} Ne7 {[%clk 01:33:08]} {[%emt 00:00:11]} 8. Re1 {[%clk
01:26:25]} {[%emt 00:01:58]} Nd7 {[%clk 01:33:02]} {[%emt 00:00:37]} 9. Bf4
{[%clk 01:22:37]} {[%emt 00:04:18]} Bb7 {[%clk 01:32:50]} {[%emt 00:00:42]} 10.
Qd3 {[%clk 01:18:39]} {[%emt 00:04:28]} Nf6 {[%clk 01:30:28]} {[%emt 00:02:52]}
11. Rad1 {[%clk 01:18:40]} {[%emt 00:00:28]} Qd7 {[%clk 01:27:49]} {[%emt
00:03:10]} 12. e5 {[%clk 01:18:13]} {[%emt 00:00:57]} Nfd5 {[%clk 01:27:32]}
{[%emt 00:00:47]} 13. Nxd5 {[%clk 01:15:33]} {[%emt 00:03:11]} Nxd5 {[%clk
01:27:49]} {[%emt 00:00:13]} 14. Bg3 {[%clk 01:15:34]} {[%emt 00:00:28]} Qxa4
{[%clk 01:27:05]} {[%emt 00:01:14]} 15. exd6 {[%clk 01:15:02]} {[%emt
00:01:03]} cxd6 {[%clk 01:24:30]} {[%emt 00:03:04]} 16. Bxd6 {[%clk 01:15:06]}
{[%emt 00:00:26]} Rc8 {[%clk 01:12:47]} {[%emt 00:12:12]} 17. Bb3 {[%clk
01:15:08]} {[%emt 00:00:28]} Qc6 {[%clk 01:12:31]} {[%emt 00:00:47]} 18. Be5
{[%clk 01:11:56]} {[%emt 00:03:42]} O-O {[%clk 01:03:25]} {[%emt 00:09:36]} 19.
Bxg7 {[%clk 01:10:38]} {[%emt 00:01:48]} Kxg7 {[%clk 01:03:53]} {[%emt
00:00:02]} 20. Qe4 {[%clk 01:05:39]} {[%emt 00:05:30]} Nf6 {[%clk 01:00:51]}
{[%emt 00:03:30]} 21. Qxc6 {[%clk 01:05:37]} {[%emt 00:00:34]} Bxc6 {[%clk
01:00:57]} {[%emt 00:00:24]} 22. Ne5 {[%clk 01:05:08]} {[%emt 00:00:58]} Rfd8
{[%clk 00:58:26]} {[%emt 00:02:59]} 23. f3 {[%clk 01:04:16]} {[%emt 00:01:25]}
Nd7 {[%clk 00:58:20]} {[%emt 00:00:35]} 24. Nxc6 {[%clk 01:03:02]} {[%emt
00:01:44]} Rxc6 {[%clk 00:58:48]} {[%emt 00:00:03]} 25. d5 {[%clk 01:01:06]}
{[%emt 00:02:27]} exd5 {[%clk 00:52:38]} {[%emt 00:06:39]} 26. Rxd5 {[%clk
01:01:23]} {[%emt 00:00:13]} Kf6 {[%clk 00:46:22]} {[%emt 00:06:42]} 27. Red1
{[%clk 01:01:17]} {[%emt 00:00:39]} Ke7 {[%clk 00:46:16]} {[%emt 00:00:36]} 28.
R5d4 {[%clk 01:01:16]} {[%emt 00:00:31]} f6 {[%clk 00:39:01]} {[%emt 00:07:44]}
29. Re4+ {[%clk 01:00:38]} {[%emt 00:01:09]} Ne5 {[%clk 00:38:13]} {[%emt
00:01:16]} 30. Ra1 {[%clk 00:57:33]} {[%emt 00:03:37]} Kf8 {[%clk 00:31:52]}
{[%emt 00:06:51]} 31. Rxa6 {[%clk 00:57:40]} {[%emt 00:00:23]} Rd1+ {[%clk
00:30:52]} {[%emt 00:01:30]} 32. Kf2 {[%clk 00:57:58]} {[%emt 00:00:12]} Rb1
{[%clk 00:30:36]} {[%emt 00:00:45]} 33. Ra8+ {[%clk 00:58:04]} {[%emt
00:00:25]} Kg7 {[%clk 00:30:17]} {[%emt 00:00:50]} 34. Rg8+ {[%clk 00:58:25]}
{[%emt 00:00:09]} Kh6 {[%clk 00:30:22]} {[%emt 00:00:23]} 35. Rh4+ {[%clk
00:57:45]} {[%emt 00:01:12]} Kg5 {[%clk 00:30:43]} {[%emt 00:00:08]} 36. Kg3
{[%clk 00:57:35]} {[%emt 00:00:41]} Nd7 {[%clk 00:27:18]} {[%emt 00:03:54]} 37.
Ba4 {[%emt 00:03:02]} Rd6 {[%clk 00:25:06]} {[%emt 00:00:38]} 38. Rd8 {[%clk
00:56:56]} {[%emt 00:00:42]} Rbd1 {[%clk 00:24:54]} {[%emt 00:00:42]} 39. Rxh7
{[%clk 00:55:51]} {[%emt 00:01:35]} Nc5 {[%clk 00:24:19]} {[%emt 00:01:05]} 40.
Rxd6 {[%clk 00:55:15]} {[%emt 00:01:06]} Rxd6 {[%clk 00:24:47]} {[%emt
00:00:02]} 41. Bb5 {[%clk 00:54:18]} {[%emt 00:01:27]} Rd2 {[%clk 00:24:44]}
{[%emt 00:00:34]} 42. b4 {[%clk 00:54:25]} {[%emt 00:00:22]} Ne6 {[%clk
00:23:42]} {[%emt 00:01:18]} 43. h4+ {[%clk 00:52:43]} {[%emt 00:02:26]} Kf5
{[%clk 00:23:37]} {[%emt 00:00:33]} 44. Bd3+ {[%clk 00:52:19]} {[%emt
00:00:55]} Ke5 {[%clk 00:23:25]} {[%emt 00:00:40]} 45. Bxg6 {[%clk 00:51:49]}
{[%emt 00:01:02]} Nf4 {[%clk 00:22:51]} {[%emt 00:01:03]} 46. Re7+ {[%clk
00:51:59]} {[%emt 00:00:22]} Kd6 {[%clk 00:23:07]} {[%emt 00:00:14]} 47. Rf7
{[%clk 00:50:39]} {[%emt 00:01:46]} Ke5 {[%clk 00:22:26]} {[%emt 00:01:14]} 48.
Re7+ {[%clk 00:50:17]} {[%emt 00:00:52]} Kd6 {[%clk 00:22:49]} {[%emt
00:00:07]} 49. Re8 {[%clk 00:48:11]} {[%emt 00:02:32]} Rxg2+ {[%clk 00:21:20]}
{[%emt 00:02:04]} 50. Kxf4 {[%clk 00:48:29]} {[%emt 00:00:12]} Rxg6 {[%clk
00:21:44]} {[%emt 00:00:07]} 51. c3 {[%clk 00:47:26]} {[%emt 00:01:32]} Rh6
{[%clk 00:20:35]} {[%emt 00:01:39]} 52. Kg4 {[%clk 00:47:39]} {[%emt 00:00:17]}
Rg6+ {[%clk 00:20:37]} {[%emt 00:00:28]} 53. Kf5 {[%clk 00:46:38]} {[%emt
00:01:31]} Rh6 {[%clk 00:20:56]} {[%emt 00:00:10]} 54. Re4 {[%clk 00:47:00]}
{[%emt 00:00:08]} b5 {[%clk 00:20:44]} {[%emt 00:00:43]} 55. Kg4 {[%clk
00:46:23]} {[%emt 00:01:06]} Rg6+ {[%clk 00:20:16]} {[%emt 00:01:00]} 56. Kf5
{[%clk 00:46:43]} {[%emt 00:00:08]} Rh6 {[%clk 00:20:01]} {[%emt 00:00:46]} 57.
Rd4+ {[%clk 00:46:58]} {[%emt 00:00:16]} Kc6 {[%clk 00:20:22]} {[%emt
00:00:09]} 58. Rg4 {[%clk 00:46:59]} {[%emt 00:00:27]} Kd5 {[%clk 00:20:35]}
{[%emt 00:00:17]} 59. Re4 {[%clk 00:47:15]} {[%emt 00:00:16]} Kd6 {[%clk
00:20:42]} {[%emt 00:00:22]} 60. c4 {[%clk 00:47:16]} {[%emt 00:00:28]} bxc4
{[%clk 00:20:41]} {[%emt 00:00:32]} 61. Rxc4 {[%clk 00:47:40]} {[%emt
00:00:06]} Kd5 {[%clk 00:21:02]} {[%emt 00:00:09]} 62. Re4 {[%clk 00:47:42]}
{[%emt 00:00:27]} Kc6 {[%clk 00:21:17]} {[%emt 00:00:16]} 63. Kg4 {[%clk
00:47:47]} {[%emt 00:00:25]} Kb5 {[%clk 00:20:53]} {[%emt 00:00:54]} 64. Rf4
{[%clk 00:47:45]} {[%emt 00:00:30]} Ka4 {[%clk 00:20:45]} {[%emt 00:00:40]} 65.
h5 {[%clk 00:47:53]} {[%emt 00:00:22]} Kb5 {[%clk 00:20:59]} {[%emt 00:00:15]}
66. Kh4 {[%clk 00:48:09]} {[%emt 00:00:15]} Ka4 {[%clk 00:20:41]} {[%emt
00:00:48]} 67. Rg4 {[%clk 00:48:34]} {[%emt 00:00:06]} Rh7 {[%clk 00:20:35]}
{[%emt 00:00:31]} 68. Rg6 {[%clk 00:48:21]} {[%emt 00:00:47]} Kxb4 {[%clk
00:20:56]} {[%emt 00:00:09]} 69. Rxf6 {[%clk 00:48:46]} {[%emt 00:00:04]} Kc4
{[%clk 00:21:16]} {[%emt 00:00:10]} 70. Kg5 {[%clk 00:49:12]} {[%emt 00:00:04]}
Rg7+ {[%clk 00:21:02]} {[%emt 00:00:45]} 71. Rg6 {[%clk 00:49:34]} {[%emt
00:00:08]} 1-0

[Event "NJSK 2026 Jeugd C"]
[Site "Helmond, Netherlands"]
[Date "2026.04.29"]
[Round "6.14"]
[White "Ngangbam, Chingthang"]
[Black "Tkacenko, Kostia"]
[Result "1-0"]
[TimeControl "90min/40moves + 30sec/move"]
[WhiteTitle "-"]
[BlackTitle "-"]
[WhiteFideId "1086510"]
[BlackFideId "40120708"]
[WhiteElo "1937"]
[BlackElo "1552"]

1. e4 {[%clk 01:30:56]} {[%emt 00:00:03]} e6 {[%clk 01:30:53]} {[%emt
00:00:08]} 2. d4 {[%clk 01:31:18]} {[%emt 00:00:08]} d5 {[%clk 01:31:19]}
{[%emt 00:00:04]} 3. Nc3 {[%clk 01:31:39]} {[%emt 00:00:09]} Nf6 {[%clk
01:31:22]} {[%emt 00:00:27]} 4. Bg5 {[%clk 01:31:52]} {[%emt 00:00:17]} Be7
{[%clk 01:31:47]} {[%emt 00:00:05]} 5. Bxf6 {[%clk 01:32:08]} {[%emt 00:00:14]}
Bxf6 {[%clk 01:31:50]} {[%emt 00:00:27]} 6. Nf3 {[%clk 01:32:07]} {[%emt
00:00:30]} b6 {[%clk 01:29:36]} {[%emt 00:02:45]} 7. Bd3 {[%clk 01:30:32]}
{[%emt 00:02:05]} Bb7 {[%clk 01:27:43]} {[%emt 00:02:23]} 8. Qd2 {[%clk
01:24:01]} {[%emt 00:07:01]} O-O {[%clk 01:11:11]} {[%emt 00:17:03]} 9. O-O-O
{[%clk 01:22:40]} {[%emt 00:01:50]} Nd7 {[%clk 01:06:37]} {[%emt 00:05:04]} 10.
e5 {[%clk 01:18:33]} {[%emt 00:04:37]} Be7 {[%clk 01:06:26]} {[%emt 00:00:42]}
11. h4 {[%clk 01:18:27]} {[%emt 00:00:35]} c5 {[%clk 01:05:09]} {[%emt
00:01:47]} 12. Qe2 {[%clk 00:48:33]} {[%emt 00:30:29]} h6 {[%clk 01:01:18]}
{[%emt 00:04:14]} 13. Qe3 {[%clk 00:43:20]} {[%emt 00:05:43]} cxd4 {[%clk
00:58:41]} {[%emt 00:03:09]} 14. Nxd4 {[%clk 00:41:41]} {[%emt 00:02:08]} Bc5
{[%clk 00:56:53]} {[%emt 00:02:19]} 15. g4 {[%clk 00:37:50]} {[%emt 00:04:20]}
Qc7 {[%clk 00:53:56]} {[%emt 00:03:26]} 16. f4 {[%clk 00:33:19]} {[%emt
00:05:01]} Bxd4 {[%clk 00:54:13]} {[%emt 00:00:14]} 17. Qxd4 {[%clk 00:33:40]}
{[%emt 00:00:08]} Qc5 {[%clk 00:54:31]} {[%emt 00:00:13]} 18. Ne2 {[%clk
00:33:33]} {[%emt 00:00:36]} Rac8 {[%clk 00:54:19]} {[%emt 00:00:43]} 19. c3
{[%clk 00:29:09]} {[%emt 00:04:54]} f6 {[%clk 00:48:41]} {[%emt 00:06:07]} 20.
Bc2 {[%clk 00:27:55]} {[%emt 00:01:45]} fxe5 {[%clk 00:47:32]} {[%emt
00:01:39]} 21. Qd3 {[%clk 00:25:28]} {[%emt 00:02:56]} e4 {[%clk 00:46:22]}
{[%emt 00:01:41]} 22. Qg3 {[%clk 00:25:52]} {[%emt 00:00:05]} e5 {[%clk
00:44:20]} {[%emt 00:02:34]} 23. Bb3 {[%clk 00:11:49]} {[%emt 00:14:32]} b5
{[%clk 00:38:39]} {[%emt 00:06:11]} 24. Kb1 {[%clk 00:10:20]} {[%emt 00:01:58]}
a5 {[%clk 00:36:01]} {[%emt 00:03:08]} 25. Rhf1 {[%clk 00:08:32]} {[%emt
00:02:18]} a4 {[%clk 00:35:40]} {[%emt 00:00:52]} 26. Bc2 {[%clk 00:08:57]}
{[%emt 00:00:04]} d4 {[%clk 00:33:52]} {[%emt 00:02:18]} 27. Nxd4 {[%clk
00:07:25]} {[%emt 00:02:02]} exd4 {[%clk 00:33:51]} {[%emt 00:00:31]} 28. Rxd4
{[%clk 00:07:50]} {[%emt 00:00:05]} Qc7 {[%clk 00:26:55]} {[%emt 00:07:26]} 29.
g5 {[%clk 00:07:55]} {[%emt 00:00:25]} hxg5 {[%clk 00:25:36]} {[%emt 00:01:49]}
30. hxg5 {[%clk 00:08:21]} {[%emt 00:00:04]} Rce8 {[%clk 00:22:53]} {[%emt
00:03:13]} 31. Qh3 {[%clk 00:08:04]} {[%emt 00:00:47]} Re7 {[%clk 00:14:55]}
{[%emt 00:08:27]} 32. g6 {[%clk 00:07:34]} {[%emt 00:01:01]} Nf6 {[%clk
00:12:24]} {[%emt 00:03:00]} 33. Rh1 {[%clk 00:07:55]} {[%emt 00:00:10]} e3
{[%clk 00:10:58]} {[%emt 00:01:57]} 34. Qh8# {[%clk 00:08:17]} {[%emt
00:00:07]} 1-0

[Event "NJSK 2026 Jeugd C"]
[Site "Helmond, Netherlands"]
[Date "2026.04.29"]
[Round "6.15"]
[White "Bajnath, Dhanesh"]
[Black "Roersma, Dylan"]
[Result "1-0"]
[TimeControl "90min/40moves + 30sec/move"]
[WhiteTitle "-"]
[BlackTitle "-"]
[WhiteFideId "40104842"]
[BlackFideId "1097393"]
[WhiteElo "1889"]
[BlackElo "1846"]

1. e4 {[%clk 01:29:23]} {[%emt 00:01:37]} c5 {[%clk 01:30:22]} {[%emt
00:00:38]} 2. Nf3 {[%clk 01:29:52]} Nc6 {[%clk 01:30:46]} {[%emt 00:00:07]} 3.
d4 {[%clk 01:30:21]} {[%emt 00:00:02]} cxd4 {[%clk 01:31:10]} {[%emt 00:00:05]}
4. Nxd4 {[%clk 01:30:50]} {[%emt 00:00:01]} e5 {[%clk 01:31:34]} {[%emt
00:00:06]} 5. Nb5 {[%clk 01:31:19]} {[%emt 00:00:02]} d6 {[%clk 01:31:58]}
{[%emt 00:00:05]} 6. c4 {[%clk 01:31:45]} {[%emt 00:00:04]} Be7 {[%clk
01:32:16]} {[%emt 00:00:12]} 7. N1c3 {[%clk 01:32:14]} a6 {[%clk 01:32:39]}
{[%emt 00:00:07]} 8. Na3 {[%clk 01:32:40]} {[%emt 00:00:04]} Nf6 {[%clk
01:32:59]} {[%emt 00:00:10]} 9. Nc2 {[%clk 01:32:35]} {[%emt 00:00:35]} Be6
{[%clk 01:32:37]} {[%emt 00:00:53]} 10. Be2 {[%clk 01:32:53]} {[%emt 00:00:11]}
O-O {[%clk 01:32:49]} {[%emt 00:00:18]} 11. O-O {[%clk 01:33:16]} {[%emt
00:00:08]} Rc8 {[%clk 01:32:29]} {[%emt 00:00:49]} 12. Be3 {[%clk 01:33:20]}
{[%emt 00:00:27]} h6 {[%clk 01:31:13]} {[%emt 00:01:46]} 13. h3 {[%clk
01:33:17]} {[%emt 00:00:32]} Qd7 {[%clk 01:21:29]} {[%emt 00:10:14]} 14. Qd2
{[%clk 01:33:04]} {[%emt 00:00:43]} Bd8 {[%clk 01:19:49]} {[%emt 00:02:10]} 15.
Rad1 {[%clk 01:27:00]} {[%emt 00:06:33]} Bc7 {[%clk 01:17:44]} {[%emt
00:02:36]} 16. f4 {[%clk 01:26:08]} {[%emt 00:01:22]} Qe7 {[%clk 01:07:38]}
{[%emt 00:10:36]} 17. f5 {[%clk 01:19:35]} {[%emt 00:07:02]} Bd7 {[%clk
01:07:10]} {[%emt 00:00:59]} 18. Nd5 {[%clk 01:17:30]} {[%emt 00:02:35]} Qd8
{[%clk 00:56:33]} {[%emt 00:11:06]} 19. Bxh6 {[%clk 01:06:04]} {[%emt
00:11:56]} Nxe4 {[%clk 00:32:08]} {[%emt 00:24:55]} 20. Qe3 {[%clk 01:03:57]}
{[%emt 00:02:37]} Qh4 {[%clk 00:29:56]} {[%emt 00:02:42]} 21. Bg4 {[%clk
00:56:27]} {[%emt 00:07:59]} Qxh6 {[%clk 00:08:46]} {[%emt 00:21:41]} 22. Qxe4
{[%clk 00:56:11]} {[%emt 00:00:45]} Bd8 {[%clk 00:01:13]} {[%emt 00:08:04]} 23.
f6 {[%clk 00:34:13]} {[%emt 00:22:28]} Nb8 {[%clk 00:00:42]} {[%emt 00:01:01]}
24. Nce3 {[%clk 00:27:02]} {[%emt 00:07:41]} Be6 {[%clk 00:00:34]} {[%emt
00:00:39]} 25. Nf5 {[%clk 00:22:30]} {[%emt 00:05:01]} Bxf5 {[%clk 00:00:50]}
{[%emt 00:00:14]} 26. Qxf5 {[%clk 00:22:08]} {[%emt 00:00:52]} Rxc4 {[%clk
00:00:32]} {[%emt 00:00:48]} 27. Ne7+ {[%clk 00:21:46]} {[%emt 00:00:52]} Kh8
{[%clk 00:00:59]} {[%emt 00:00:03]} 28. Rxd6 {[%clk 00:20:41]} {[%emt
00:01:35]} Bxe7 {[%clk 00:00:52]} {[%emt 00:00:37]} 29. fxe7 {[%clk 00:18:38]}
{[%emt 00:02:32]} Qxd6 {[%clk 00:01:18]} {[%emt 00:00:05]} 30. Qh5+ {[%clk
00:17:05]} {[%emt 00:02:02]} Kg8 {[%clk 00:01:41]} {[%emt 00:00:07]} 31.
exf8=Q+ {[%clk 00:17:04]} {[%emt 00:00:13]} Qxf8 {[%clk 00:02:08]} {[%emt
00:00:22]} 32. Bf5 {[%clk 00:15:12]} {[%emt 00:02:22]} Qc5+ {[%clk 00:01:34]}
{[%emt 00:01:04]} 33. Kh2 {[%clk 00:15:37]} {[%emt 00:00:04]} Qc7 {[%clk
00:00:37]} {[%emt 00:01:28]} 34. Qh7+ {[%clk 00:09:10]} {[%emt 00:06:57]} Kf8
{[%clk 00:01:03]} {[%emt 00:00:04]} 35. Qh8+ {[%clk 00:09:01]} {[%emt
00:00:39]} Ke7 {[%clk 00:01:30]} {[%emt 00:00:03]} 36. Qxg7 {[%clk 00:09:05]}
{[%emt 00:00:26]} Nc6 {[%clk 00:00:32]} {[%emt 00:01:28]} 37. Bg6 {[%clk
00:07:49]} {[%emt 00:01:45]} Kd6 {[%clk 00:00:32]} {[%emt 00:00:31]} 38. Rxf7
{[%clk 00:07:47]} {[%emt 00:00:32]} Qc8 {[%clk 00:00:33]} {[%emt 00:00:28]} 39.
Rxb7 {[%clk 00:07:04]} {[%emt 00:01:12]} Kc5 {[%clk 00:00:36]} {[%emt
00:00:28]} 40. Rc7 {[%clk 00:06:42]} {[%emt 00:00:52]} Qb8 {[%clk 00:00:51]}
{[%emt 00:00:16]} 41. Qxe5+ {[%clk 00:06:20]} {[%emt 00:00:51]} Kb4 {[%clk
00:01:17]} {[%emt 00:00:04]} 42. Qe1+ {[%clk 00:05:48]} {[%emt 00:01:02]} Kb5
{[%clk 00:01:08]} {[%emt 00:00:40]} 43. Qg3 {[%clk 00:05:03]} {[%emt 00:01:13]}
a5 {[%clk 00:00:31]} {[%emt 00:01:08]} 44. Bd3 {[%clk 00:05:17]} {[%emt
00:00:16]} Kb6 {[%clk 00:00:31]} {[%emt 00:00:30]} 45. Rxc6+ {[%clk 00:05:18]}
{[%emt 00:00:29]} 1-0